{"text_format":"1","workbook":"xlsx","n_sheets":2,"sheets":["월간 매입매출장","Option"],"not_rendered":{"charts":0,"images":0,"macros":1,"external_links":0,"defined_names":1,"comments":0,"pivot_tables":0},"unopened":[],"bounds":{"document_bytes":16777216,"sheet_cells":100000,"rows_first":2000,"rows_last":500,"rows_between":2000,"halvings":0,"cell_chars":16384,"cell_head_chars":4096},"cells_cut":0,"cells_raw":0,"read":"whole","date_system":"1900"}

{"sheet":"월간 매입매출장","index":0,"n_rows":22,"n_cols":46,"rows_kept":22,"cut":false,"hidden":false,"merged":[[21,30,21,33],[21,34,21,37],[21,38,21,40],[21,41,21,44],[21,45,21,48],[21,1,21,5],[21,6,21,11],[21,12,21,17],[21,18,21,26],[21,27,21,29],[20,30,20,33],[20,34,20,37],[20,38,20,40],[20,41,20,44],[20,45,20,48],[20,1,20,5],[20,6,20,11],[20,12,20,17],[20,18,20,26],[20,27,20,29],[19,30,19,33],[19,34,19,37],[19,38,19,40],[19,41,19,44],[19,45,19,48],[19,1,19,5],[19,6,19,11],[19,12,19,17],[19,18,19,26],[19,27,19,29],[18,30,18,33],[18,34,18,37],[18,38,18,40],[18,41,18,44],[18,45,18,48],[18,1,18,5],[18,6,18,11],[18,12,18,17],[18,18,18,26],[18,27,18,29],[17,30,17,33],[17,34,17,37],[17,38,17,40],[17,41,17,44],[17,45,17,48],[17,1,17,5],[17,6,17,11],[17,12,17,17],[17,18,17,26],[17,27,17,29],[16,30,16,33],[16,34,16,37],[16,38,16,40],[16,41,16,44],[16,45,16,48],[16,1,16,5],[16,6,16,11],[16,12,16,17],[16,18,16,26],[16,27,16,29],[15,30,15,33],[15,34,15,37],[15,38,15,40],[15,41,15,44],[15,45,15,48],[15,1,15,5],[15,6,15,11],[15,12,15,17],[15,18,15,26],[15,27,15,29],[14,30,14,33],[14,34,14,37],[14,38,14,40],[14,41,14,44],[14,45,14,48],[14,1,14,5],[14,6,14,11],[14,12,14,17],[14,18,14,26],[14,27,14,29],[13,30,13,33],[13,34,13,37],[13,38,13,40],[13,41,13,44],[13,45,13,48],[13,1,13,5],[13,6,13,11],[13,12,13,17],[13,18,13,26],[13,27,13,29],[12,30,12,33],[12,34,12,37],[12,38,12,40],[12,41,12,44],[12,45,12,48],[12,1,12,5],[12,6,12,11],[12,12,12,17],[12,18,12,26],[12,27,12,29],[11,30,11,33],[11,34,11,37],[11,38,11,40],[11,41,11,44],[11,45,11,48],[11,1,11,5],[11,6,11,11],[11,12,11,17],[11,18,11,26],[11,27,11,29],[10,30,10,33],[10,34,10,37],[10,38,10,40],[10,41,10,44],[10,45,10,48],[10,1,10,5],[10,6,10,11],[10,12,10,17],[10,18,10,26],[10,27,10,29],[9,30,9,33],[9,34,9,37],[9,38,9,40],[9,41,9,44],[9,45,9,48],[9,1,9,5],[9,6,9,11],[9,12,9,17],[9,18,9,26],[9,27,9,29],[8,30,8,33],[8,34,8,37],[8,38,8,40],[8,41,8,44],[8,45,8,48],[8,1,8,5],[8,6,8,11],[8,12,8,17],[8,18,8,26],[8,27,8,29],[5,1,5,5],[5,6,5,17],[5,34,5,38],[5,39,5,48],[6,1,7,5],[6,6,7,11],[6,12,7,17],[6,18,7,26],[6,27,6,37],[6,38,6,48],[7,27,7,29],[7,30,7,33],[7,34,7,37],[7,38,7,40],[7,41,7,44],[7,45,7,48],[2,37,2,39],[2,40,2,42],[2,43,2,45],[2,46,2,48],[3,37,3,39],[3,40,3,42],[3,43,3,45],[3,46,3,48],[2,1,3,36]]}
[]
[]
[null,"월간 매입매출장"]
[]
[]
[null,"월별",null,null,null,null,"20  년   월",null,null,null,null,null,null,null,null,null,null,null,null,null,null,null,null,null,null,null,null,null,null,null,null,null,null,null,"작성자"]
[null,"일자",null,null,null,null,"거래처",null,null,null,null,null,"품명",null,null,null,null,null,"적요",null,null,null,null,null,null,null,null,"매입",null,null,null,null,null,null,null,null,null,null,"매출"]
[null,null,null,null,null,null,null,null,null,null,null,null,null,null,null,null,null,null,null,null,null,null,null,null,null,null,null,"수량",null,null,"단가",null,null,null,"금액",null,null,null,"수량",null,null,"단가",null,null,null,"금액"]
[null,null,null,null,null,null,null,null,null,null,null,null,null,null,null,null,null,null,null,null,null,null,null,null,null,null,null,null,null,null,null,null,null,null,{"$f":"AB9*AE9","v":0},null,null,null,null,null,null,null,null,null,null,{"$f":"AM9*AP9","v":0}]
[null,null,null,null,null,null,null,null,null,null,null,null,null,null,null,null,null,null,null,null,null,null,null,null,null,null,null,null,null,null,null,null,null,null,{"$f":"AB10*AE10","v":0},null,null,null,null,null,null,null,null,null,null,0]
[null,null,null,null,null,null,null,null,null,null,null,null,null,null,null,null,null,null,null,null,null,null,null,null,null,null,null,null,null,null,null,null,null,null,0,null,null,null,null,null,null,null,null,null,null,0]
[null,null,null,null,null,null,null,null,null,null,null,null,null,null,null,null,null,null,null,null,null,null,null,null,null,null,null,null,null,null,null,null,null,null,0,null,null,null,null,null,null,null,null,null,null,0]
[null,null,null,null,null,null,null,null,null,null,null,null,null,null,null,null,null,null,null,null,null,null,null,null,null,null,null,null,null,null,null,null,null,null,0,null,null,null,null,null,null,null,null,null,null,0]
[null,null,null,null,null,null,null,null,null,null,null,null,null,null,null,null,null,null,null,null,null,null,null,null,null,null,null,null,null,null,null,null,null,null,0,null,null,null,null,null,null,null,null,null,null,0]
[null,null,null,null,null,null,null,null,null,null,null,null,null,null,null,null,null,null,null,null,null,null,null,null,null,null,null,null,null,null,null,null,null,null,0,null,null,null,null,null,null,null,null,null,null,0]
[null,null,null,null,null,null,null,null,null,null,null,null,null,null,null,null,null,null,null,null,null,null,null,null,null,null,null,null,null,null,null,null,null,null,0,null,null,null,null,null,null,null,null,null,null,0]
[null,null,null,null,null,null,null,null,null,null,null,null,null,null,null,null,null,null,null,null,null,null,null,null,null,null,null,null,null,null,null,null,null,null,0,null,null,null,null,null,null,null,null,null,null,0]
[null,null,null,null,null,null,null,null,null,null,null,null,null,null,null,null,null,null,null,null,null,null,null,null,null,null,null,null,null,null,null,null,null,null,0,null,null,null,null,null,null,null,null,null,null,0]
[null,null,null,null,null,null,null,null,null,null,null,null,null,null,null,null,null,null,null,null,null,null,null,null,null,null,null,null,null,null,null,null,null,null,0,null,null,null,null,null,null,null,null,null,null,0]
[null,null,null,null,null,null,null,null,null,null,null,null,null,null,null,null,null,null,null,null,null,null,null,null,null,null,null,null,null,null,null,null,null,null,0,null,null,null,null,null,null,null,null,null,null,0]
[null,null,null,null,null,null,null,null,null,null,null,null,null,null,null,null,null,null,null,null,null,null,null,null,null,null,null,null,null,null,null,null,null,null,0,null,null,null,null,null,null,null,null,null,null,0]
[null,"합계",null,null,null,null,null,null,null,null,null,null,null,null,null,null,null,null,null,null,null,null,null,null,null,null,null,{"$f":"SUM(AB9:AD21)","v":0},null,null,null,null,null,null,{"$f":"SUM(AI9:AL21)","v":0},null,null,null,{"$f":"SUM(AM9:AO21)","v":0},null,null,null,null,null,null,{"$f":"SUM(AT9:AW21)","v":0}]

{"sheet":"Option","index":1,"n_rows":7,"n_cols":8,"rows_kept":7,"cut":false,"hidden":true,"merged":[]}
["지출결의서",null,"행/열",0,"흑백인쇄",0,null,"결재란"]
["월 지출내역서",null,"색상",1,null,null,null,"없음"]
["월 지출품의서",null,null,null,null,null,null,"1개"]
[null,null,null,null,null,null,null,"2개"]
[null,null,null,null,null,null,null,"3개"]
[null,null,null,null,null,null,null,"4개"]
[null,null,null,null,null,null,null,"5개"]